[Event "Open Cappelle-la-Grande"]
[Date "2026.02.22"]
[White "Cheng, Bobby"]
[Black "Vela Frago, Alberto"]
[WhiteElo "2566"]
[BlackElo "2302"]
[Round "2.2.3"]
[Result "1-0"]
[TimeControl "40/5400+30:1800+30"]

c4 {[%clk 1:30:57]} e6 {[%clk 1:30:54]} Nc3 {[%clk 1:31:23]} d5 {[%clk 1:31:15]}
d4 {[%clk 1:31:49]} Nf6 {[%clk 1:31:39]} cxd5 {[%clk 1:32:15]} Nxd5 {[%clk
1:32:04]} e4 {[%clk 1:31:42]} Nxc3 {[%clk 1:32:32]} bxc3 {[%clk 1:32:07]} c5
{[%clk 1:32:57]} Rb1 {[%clk 1:31:45]} Be7 {[%clk 1:33:11]} Nf3 {[%clk 1:30:00]}
O-O {[%clk 1:33:35]} h4 {[%clk 1:28:34]} b6 {[%clk 1:29:36]} Bd3 {[%clk
1:27:34]} e5 {[%clk 1:09:59]} dxe5 {[%clk 1:18:58]} Nc6 {[%clk 1:07:37]} Bf4
{[%clk 1:08:35]} Qc7 {[%clk 1:01:02]} Bg3 {[%clk 0:55:23]} Be6 {[%clk 0:58:28]}
Qe2 {[%clk 0:52:54]} Rad8 {[%clk 0:52:48]} Bc4 {[%clk 0:43:22]} Bxc4 {[%clk
0:47:09]} Qxc4 {[%clk 0:43:48]} Qd7 {[%clk 0:47:31]} Qa6 {[%clk 0:37:00]} Na5
{[%clk 0:43:49]} O-O {[%clk 0:36:47]} Rfe8 {[%clk 0:40:44]} Kh2 {[%clk 0:33:35]}
Qc6 {[%clk 0:38:04]} Qe2 {[%clk 0:33:53]} Qa4 {[%clk 0:37:24]} Rbd1 {[%clk
0:33:16]} Qa3 {[%clk 0:35:20]} Qc2 {[%clk 0:32:47]} Nc4 {[%clk 0:34:47]} Rd5
{[%clk 0:32:57]} b5 {[%clk 0:33:51]} Rfd1 {[%clk 0:31:56]} h6 {[%clk 0:28:24]}
Rxd8 {[%clk 0:27:42]} Bxd8 {[%clk 0:26:10]} e6 {[%clk 0:23:13]} fxe6 {[%clk
0:25:24]} Ne5 {[%clk 0:23:43]} Bc7 {[%clk 0:21:58]} Nxc4 {[%clk 0:23:45]} Bxg3+
{[%clk 0:22:26]} Kxg3 {[%clk 0:09:29]} bxc4 {[%clk 0:22:53]} Rd7 {[%clk
0:09:57]} Qa5 {[%clk 0:20:29]} Qd2 {[%clk 0:09:10]} Kh8 {[%clk 0:19:31]} f3
{[%clk 0:08:58]} Qb6 {[%clk 0:17:37]} Qd6 {[%clk 0:05:59]} Qb1 {[%clk 0:17:36]}
Qe5 {[%clk 0:05:24]} Rg8 {[%clk 0:17:03]} Rxa7 {[%clk 0:04:45]} Qb8 {[%clk
0:11:52]} Rc7 {[%clk 0:01:33]} Qa8 {[%clk 0:10:09]} Re7 {[%clk 0:01:53]} Qxa2
{[%clk 0:09:04]} Rxe6 {[%clk 0:02:15]} Qd2 {[%clk 0:09:26]} Re7 {[%clk 0:01:27]}
Qe1+ {[%clk 0:09:30]} Kh3 {[%clk 0:01:34]} Qh1+ {[%clk 0:09:20]} Kg3 {[%clk
0:01:58]} Qe1+ {[%clk 0:09:47]} Kg4 {[%clk 0:01:05]} Qe2 {[%clk 0:09:23]} Kh3
{[%clk 0:00:47]} Qe1 {[%clk 0:09:13]} Kg4 {[%clk 0:26:15]} Qe2 {[%clk 0:38:53]}
g3 {[%clk 0:26:10]} Qe3 {[%clk 0:38:43]} Rc7 {[%clk 0:25:48]} Kh7 {[%clk
0:35:26]} h5 {[%clk 0:22:50]} Kh8 {[%clk 0:32:03]} Qxc5 {[%clk 0:19:30]} Qxc3
{[%clk 0:32:25]} Qxc4 {[%clk 0:19:52]} Qf6 {[%clk 0:29:50]} Qf7 {[%clk 0:17:56]}
Qg5+ {[%clk 0:27:46]} Kh3 {[%clk 0:18:24]} Qb5 {[%clk 0:28:09]} Re7 {[%clk
0:17:15]} Qf1+ {[%clk 0:26:54]} Kg4 {[%clk 0:17:40]} Qa1 {[%clk 0:26:55]} Re8
{[%clk 0:11:27]} Rxe8 {[%clk 0:27:19]} Qxe8+ {[%clk 0:11:54]} Kh7 {[%clk
0:27:44]} Qg6+ {[%clk 0:12:22]} Kh8 {[%clk 0:28:01]} Qf5 {[%clk 0:12:00]} Qa4
{[%clk 0:27:44]} Qf8+ {[%clk 0:11:56]} Kh7 {[%clk 0:28:13]} Qf4 {[%clk 0:12:20]}
Kh8 {[%clk 0:27:54]} e5 {[%clk 0:12:29]} Qd7+ {[%clk 0:28:18]} Qf5 {[%clk
0:12:47]} Qd4+ {[%clk 0:28:24]} Qe4 {[%clk 0:10:53]} Qd2 {[%clk 0:28:40]} f4
{[%clk 0:09:17]} Qd1+ {[%clk 0:28:51]} Kh4 {[%clk 0:09:40]} Qd8+ {[%clk
0:29:02]} Kh3 {[%clk 0:10:04]} Qd1 {[%clk 0:29:25]} Qa8+ {[%clk 0:10:08]} Kh7
{[%clk 0:29:49]} Qe4+ {[%clk 0:10:33]} Kh8 {[%clk 0:30:15]} Kh4 {[%clk 0:07:22]}
Qd8+ {[%clk 0:30:06]} Kg4 {[%clk 0:07:46]} Qd1+ {[%clk 0:30:23]} Qf3 {[%clk
0:08:02]} Qd7+ {[%clk 0:29:55]} Kh4 {[%clk 0:08:29]} Qd8+ {[%clk 0:28:42]} Kh3
{[%clk 0:08:56]} Qc8+ {[%clk 0:28:20]} f5 {[%clk 0:08:45]} Qc1 {[%clk 0:28:12]}
f6 {[%clk 0:07:06]} gxf6 {[%clk 0:26:36]} Qxf6+ {[%clk 0:07:32]} Kh7 {[%clk
0:26:34]} Qf3 {[%clk 0:07:10]} Qc8+ {[%clk 0:23:58]} g4 {[%clk 0:07:39]} Qf8
{[%clk 0:21:34]} Qf5+ {[%clk 0:07:51]}

[Variant "Standard"]
[Site "Europe Echecs"]

[Event "Open Cappelle-la-Grande"]
[Date "2026.02.22"]
[White "Fiedorek, Michal"]
[Black "Can, Emre"]
[WhiteElo "2288"]
[BlackElo "2541"]
[Round "2.2.4"]
[Result "1/2-1/2"]
[TimeControl "40/5400+30:1800+30"]

e4 {[%clk 1:30:54]} c5 {[%clk 1:30:47]} Nc3 {[%clk 1:31:15]} d6 {[%clk 1:30:24]}
d4 {[%clk 1:31:28]} cxd4 {[%clk 1:30:02]} Qxd4 {[%clk 1:31:52]} Nc6 {[%clk
1:30:03]} Qd2 {[%clk 1:31:56]} Nf6 {[%clk 1:30:04]} b3 {[%clk 1:27:50]} e6
{[%clk 1:30:18]} Bb2 {[%clk 1:27:41]} d5 {[%clk 1:30:14]} exd5 {[%clk 1:24:51]}
exd5 {[%clk 1:30:34]} O-O-O {[%clk 1:18:48]} Be6 {[%clk 1:30:52]} Kb1 {[%clk
0:58:48]} Qa5 {[%clk 1:28:40]} Nb5 {[%clk 0:53:39]} Qxd2 {[%clk 1:00:56]} Rxd2
{[%clk 0:53:24]} Bb4 {[%clk 0:56:43]} Re2 {[%clk 0:45:29]} O-O-O {[%clk
0:55:44]} Nf3 {[%clk 0:42:46]} Rhe8 {[%clk 0:50:30]} a3 {[%clk 0:35:29]} Bc5
{[%clk 0:46:53]} Nfd4 {[%clk 0:31:04]} Bd7 {[%clk 0:47:06]} f3 {[%clk 0:18:49]}
a6 {[%clk 0:38:04]} Nxc6 {[%clk 0:17:54]} bxc6 {[%clk 0:38:09]} Nd4 {[%clk
0:17:04]} a5 {[%clk 0:32:29]} Kc1 {[%clk 0:12:20]} Bd6 {[%clk 0:31:41]} Rxe8
{[%clk 0:10:15]} Nxe8 {[%clk 0:31:51]} Bd3 {[%clk 0:08:21]} g6 {[%clk 0:31:37]}
g3 {[%clk 0:08:01]} Nc7 {[%clk 0:31:52]} f4 {[%clk 0:06:17]} Kb7 {[%clk
0:27:26]} Re1 {[%clk 0:05:11]} Ne6 {[%clk 0:23:12]} Nf3 {[%clk 0:04:18]} Rc8
{[%clk 0:20:33]} Ne5 {[%clk 0:03:21]} Bxe5 {[%clk 0:17:31]} Rxe5 {[%clk
0:03:20]} Re8 {[%clk 0:17:13]} Kd2 {[%clk 0:01:48]}

[Variant "Standard"]
[Site "Europe Echecs"]

[Event "Open Cappelle-la-Grande"]
[Date "2026.02.22"]
[White "Robert, Yoann"]
[Black "Razafindratsima, Timothe"]
[WhiteElo "2273"]
[BlackElo "2504"]
[Round "2.2.5"]
[Result "0-1"]
[TimeControl "40/5400+30:1800+30"]

d4 {[%clk 1:29:57]} f5 {[%clk 1:30:20]} Nc3 {[%clk 1:30:21]} Nf6 {[%clk
1:30:47]} Bf4 {[%clk 1:30:47]} e6 {[%clk 1:27:34]} g4 {[%clk 1:31:12]} Bb4
{[%clk 1:13:55]} gxf5 {[%clk 1:23:21]} exf5 {[%clk 1:14:18]} a3 {[%clk 1:15:21]}
Bxc3+ {[%clk 1:08:51]} bxc3 {[%clk 1:15:45]} Qe7 {[%clk 1:09:07]} Nf3 {[%clk
1:03:30]} b6 {[%clk 1:07:11]} Rg1 {[%clk 0:59:51]} Bb7 {[%clk 1:03:53]} e3
{[%clk 0:59:20]} d6 {[%clk 0:59:18]} Nd2 {[%clk 0:44:51]} Nbd7 {[%clk 0:47:16]}
Bg2 {[%clk 0:43:58]} Bxg2 {[%clk 0:43:53]} Rxg2 {[%clk 0:44:20]} h6 {[%clk
0:44:19]} h4 {[%clk 0:40:41]} O-O-O {[%clk 0:33:48]} Qf3 {[%clk 0:36:13]} Kb8
{[%clk 0:34:05]} Qc6 {[%clk 0:26:27]} Nh5 {[%clk 0:26:35]} Bh2 {[%clk 0:26:15]}
Ndf6 {[%clk 0:26:29]} Rb1 {[%clk 0:18:58]} Rhe8 {[%clk 0:22:07]} Nc4 {[%clk
0:16:19]} Qe4 {[%clk 0:21:37]} Na5 {[%clk 0:16:44]} Kc8 {[%clk 0:19:50]} c4
{[%clk 0:08:53]} Qxc2 {[%clk 0:13:15]} Qb7+ {[%clk 0:02:08]} Kd7 {[%clk
0:13:40]} Qc6+ {[%clk 0:02:36]} Ke7 {[%clk 0:13:21]} Rb5 {[%clk 0:02:22]} bxa5
{[%clk 0:12:59]} Qxc7+ {[%clk 0:01:31]} Rd7 {[%clk 0:13:23]} Bxd6+ {[%clk
0:01:32]} Kf7 {[%clk 0:12:08]} Qc6 {[%clk 0:01:59]} Rxd6 {[%clk 0:12:34]} Qxd6
{[%clk 0:02:25]} Qc1+ {[%clk 0:12:59]}

[Variant "Standard"]
[Site "Europe Echecs"]

[Event "Open Cappelle-la-Grande"]
[Date "2026.02.22"]
[White "Degraeve, Jean-Marc"]
[Black "Jacobsen, Mikkel Manosri"]
[WhiteElo "2503"]
[BlackElo "2291"]
[Round "2.2.6"]
[Result "1/2-1/2"]
[TimeControl "40/5400+30:1800+30"]

e4 {[%clk 1:28:19]} c6 {[%clk 1:30:54]} Nc3 {[%clk 1:28:12]} d5 {[%clk 1:31:18]}
Nf3 {[%clk 1:28:33]} dxe4 {[%clk 1:29:11]} Nxe4 {[%clk 1:26:26]} Nf6 {[%clk
1:29:35]} Qe2 {[%clk 1:26:16]} Na6 {[%clk 1:29:59]} c3 {[%clk 1:25:13]} Nxe4
{[%clk 1:25:34]} Qxe4 {[%clk 1:24:44]} Qd5 {[%clk 1:24:25]} Qxd5 {[%clk
1:08:10]} cxd5 {[%clk 1:24:49]} d4 {[%clk 1:08:37]} Nb8 {[%clk 1:18:49]} Ne5
{[%clk 1:06:16]} e6 {[%clk 1:02:58]} Bb5+ {[%clk 1:03:18]} Nd7 {[%clk 1:02:57]}
a4 {[%clk 1:00:03]} f6 {[%clk 0:56:32]} Ng4 {[%clk 0:58:01]} Bd6 {[%clk
0:54:50]} O-O {[%clk 0:58:14]} Kf7 {[%clk 0:54:03]} Bd2 {[%clk 0:54:58]} f5
{[%clk 0:50:48]} Ne3 {[%clk 0:46:29]} Nf6 {[%clk 0:51:03]} Bd3 {[%clk 0:46:38]}
Bd7 {[%clk 0:49:56]} c4 {[%clk 0:46:21]} f4 {[%clk 0:47:18]} Nd1 {[%clk
0:46:38]} dxc4 {[%clk 0:47:15]} Bxc4 {[%clk 0:47:06]} Rac8 {[%clk 0:43:32]} Bb3
{[%clk 0:46:43]} Bc6 {[%clk 0:41:03]} Nc3 {[%clk 0:46:42]} Ne4 {[%clk 0:39:24]}
Nxe4 {[%clk 0:36:51]} Bxe4 {[%clk 0:39:48]} Rfc1 {[%clk 0:37:16]} Bd5 {[%clk
0:39:09]} Bxd5 {[%clk 0:37:31]} exd5 {[%clk 0:39:34]} b3 {[%clk 0:37:47]} Ke6
{[%clk 0:39:03]} f3 {[%clk 0:37:40]} Kd7 {[%clk 0:38:49]} Kf1 {[%clk 0:37:40]}
Rxc1+ {[%clk 0:38:58]} Rxc1 {[%clk 0:38:04]} Rc8 {[%clk 0:39:25]} Rxc8 {[%clk
0:38:27]} Kxc8 {[%clk 0:39:46]}

[Variant "Standard"]
[Site "Europe Echecs"]

[Event "Open Cappelle-la-Grande"]
[Date "2026.02.22"]
[White "Zeneli, Klendi"]
[Black "Rohith Krishna S"]
[WhiteElo "2268"]
[BlackElo "2484"]
[Round "2.2.7"]
[Result "0-1"]
[TimeControl "40/5400+30:1800+30"]

e4 {[%clk 1:30:55]} e5 {[%clk 1:30:56]} Nf3 {[%clk 1:31:09]} Nc6 {[%clk
1:31:12]} Bb5 {[%clk 1:31:15]} a6 {[%clk 1:31:34]} Ba4 {[%clk 1:31:36]} Nf6
{[%clk 1:31:48]} O-O {[%clk 1:31:49]} Be7 {[%clk 1:32:10]} d3 {[%clk 1:32:02]}
b5 {[%clk 1:30:58]} Bb3 {[%clk 1:32:23]} d6 {[%clk 1:31:23]} a4 {[%clk 1:32:39]}
Bd7 {[%clk 1:31:44]} c3 {[%clk 1:33:02]} O-O {[%clk 1:29:52]} Bc2 {[%clk
1:32:50]} Re8 {[%clk 1:25:50]} Re1 {[%clk 1:30:38]} h6 {[%clk 1:22:56]} h3
{[%clk 1:30:01]} Bf8 {[%clk 1:23:17]} Be3 {[%clk 1:30:00]} d5 {[%clk 1:17:23]}
Nbd2 {[%clk 1:29:44]} Be6 {[%clk 1:17:14]} Nf1 {[%clk 1:26:44]} Qd7 {[%clk
1:11:55]} Ng3 {[%clk 1:19:16]} Rad8 {[%clk 0:59:51]} axb5 {[%clk 0:53:54]} axb5
{[%clk 1:00:13]} Ra6 {[%clk 0:50:06]} dxe4 {[%clk 0:39:38]} dxe4 {[%clk
0:43:06]} Qc8 {[%clk 0:39:23]} Qa1 {[%clk 0:42:24]} Qb7 {[%clk 0:38:11]} b4
{[%clk 0:24:18]} Bd6 {[%clk 0:37:02]} Qa3 {[%clk 0:22:47]} Nd7 {[%clk 0:31:56]}
Nf5 {[%clk 0:17:15]} Bf8 {[%clk 0:30:43]} Ra1 {[%clk 0:16:24]} Nb6 {[%clk
0:30:25]} Bxb6 {[%clk 0:15:51]} cxb6 {[%clk 0:30:48]} Ne3 {[%clk 0:15:37]} Na5
{[%clk 0:30:44]} Rxb6 {[%clk 0:12:48]} Qxb6 {[%clk 0:30:49]} Qxa5 {[%clk
0:12:49]} Qc6 {[%clk 0:30:29]} Qa3 {[%clk 0:10:31]} Ra8 {[%clk 0:27:51]} Qb2
{[%clk 0:10:25]} Rxa1+ {[%clk 0:27:36]} Qxa1 {[%clk 0:10:49]} Ra8 {[%clk
0:27:07]} Qf1 {[%clk 0:08:43]} Qxc3 {[%clk 0:20:29]} Qxb5 {[%clk 0:08:57]} Ra1+
{[%clk 0:16:09]} Kh2 {[%clk 0:09:14]} Qxb4 {[%clk 0:16:21]} Qe8 {[%clk 0:07:51]}
Qe7 {[%clk 0:15:11]} Qb5 {[%clk 0:08:09]} Qc5 {[%clk 0:14:09]} Qe8 {[%clk
0:06:38]} Ra2 {[%clk 0:14:05]} Ba4 {[%clk 0:03:54]} Rxf2 {[%clk 0:12:51]} Nf5
{[%clk 0:03:44]} Re2 {[%clk 0:11:51]} Bd7 {[%clk 0:01:30]} Bxd7 {[%clk 0:08:14]}
Qxd7 {[%clk 0:01:44]} Rxe4 {[%clk 0:06:27]}

[Variant "Standard"]
[Site "Europe Echecs"]

[Event "Open Cappelle-la-Grande"]
[Date "2026.02.22"]
[White "Eugene, Floryan"]
[Black "Terryn, Ezra"]
[WhiteElo "2478"]
[BlackElo "2268"]
[Round "2.2.8"]
[Result "1-0"]
[TimeControl "40/5400+30:1800+30"]

e4 {[%clk 1:30:53]} e5 {[%clk 1:30:12]} Nf3 {[%clk 1:30:47]} Nc6 {[%clk
1:30:32]} Bb5 {[%clk 1:31:10]} a6 {[%clk 1:30:00]} Ba4 {[%clk 1:31:34]} Nf6
{[%clk 1:30:22]} d3 {[%clk 1:27:00]} b5 {[%clk 1:30:34]} Bb3 {[%clk 1:27:26]}
Bc5 {[%clk 1:30:53]} Nc3 {[%clk 1:24:13]} d6 {[%clk 1:25:10]} Nd5 {[%clk
1:20:06]} h6 {[%clk 1:16:02]} c3 {[%clk 1:15:42]} Be6 {[%clk 1:11:46]} O-O
{[%clk 1:14:58]} Bxd5 {[%clk 1:09:04]} exd5 {[%clk 1:14:41]} Ne7 {[%clk
1:09:10]} d4 {[%clk 1:11:31]} exd4 {[%clk 1:07:58]} Nxd4 {[%clk 1:11:49]} O-O
{[%clk 1:07:22]} Qf3 {[%clk 0:58:06]} Nd7 {[%clk 1:00:10]} Bc2 {[%clk 0:51:07]}
Ng6 {[%clk 0:57:09]} Nc6 {[%clk 0:45:18]} Qf6 {[%clk 0:56:35]} Qxf6 {[%clk
0:45:32]} Nxf6 {[%clk 0:56:49]} b4 {[%clk 0:45:55]} Bb6 {[%clk 0:56:25]} a4
{[%clk 0:42:25]} Rfe8 {[%clk 0:51:07]} a5 {[%clk 0:40:07]} Ba7 {[%clk 0:51:12]}
Bb3 {[%clk 0:33:31]} Ne7 {[%clk 0:48:50]} Nxa7 {[%clk 0:33:16]} Rxa7 {[%clk
0:48:52]} Be3 {[%clk 0:33:03]} Raa8 {[%clk 0:49:06]} Rfd1 {[%clk 0:32:54]} Nf5
{[%clk 0:46:39]} Bd2 {[%clk 0:31:42]} Re5 {[%clk 0:44:02]} Re1 {[%clk 0:24:16]}
Ne7 {[%clk 0:30:43]} Rxe5 {[%clk 0:23:13]} dxe5 {[%clk 0:29:49]} Re1 {[%clk
0:23:21]} Rd8 {[%clk 0:25:14]} c4 {[%clk 0:22:04]} c6 {[%clk 0:23:11]} Be3
{[%clk 0:18:56]} bxc4 {[%clk 0:18:46]} Bxc4 {[%clk 0:18:44]} Nexd5 {[%clk
0:18:46]} Bxa6 {[%clk 0:16:13]} Nxb4 {[%clk 0:14:45]} Bb7 {[%clk 0:15:53]} Nfd5
{[%clk 0:09:58]} a6 {[%clk 0:15:15]} Nc2 {[%clk 0:09:41]} Rb1 {[%clk 0:12:58]}
Nc3 {[%clk 0:09:25]} Bb6 {[%clk 0:13:16]} Re8 {[%clk 0:08:01]} Bxc6 {[%clk
0:12:55]} Rf8 {[%clk 0:07:17]} Rb2 {[%clk 0:12:07]} Ne2+ {[%clk 0:04:50]} Kf1
{[%clk 0:12:22]} Ned4 {[%clk 0:05:15]} Bb7 {[%clk 0:12:39]}

[Variant "Standard"]
[Site "Europe Echecs"]

[Event "Open Cappelle-la-Grande"]
[Date "2026.02.22"]
[White "Adrian, Leopold"]
[Black "Shchekachev, Andrei"]
[WhiteElo "2246"]
[BlackElo "2474"]
[Round "2.2.9"]
[Result "1-0"]
[TimeControl "40/5400+30:1800+30"]

Nf3 {[%clk 1:30:44]} g6 {[%clk 1:28:55]} c4 {[%clk 1:30:45]} c5 {[%clk 1:28:02]}
d4 {[%clk 1:29:50]} Bg7 {[%clk 1:28:16]} e4 {[%clk 1:28:12]} d6 {[%clk 1:28:26]}
Nc3 {[%clk 1:24:57]} Qa5 {[%clk 1:28:30]} Be2 {[%clk 1:09:02]} Bg4 {[%clk
1:14:17]} Be3 {[%clk 1:05:26]} Nc6 {[%clk 1:09:55]} d5 {[%clk 0:54:15]} Bxf3
{[%clk 1:09:56]} Bxf3 {[%clk 0:46:36]} Ne5 {[%clk 0:53:41]} Be2 {[%clk 0:43:16]}
Nxc4 {[%clk 0:51:06]} Bxc4 {[%clk 0:43:20]} Bxc3+ {[%clk 0:51:26]} Ke2 {[%clk
0:43:23]} Bg7 {[%clk 0:45:11]} Bd2 {[%clk 0:36:49]} Qd8 {[%clk 0:32:20]} Qa4+
{[%clk 0:35:37]} Kf8 {[%clk 0:32:42]} Qc2 {[%clk 0:35:22]} Qd7 {[%clk 0:22:36]}
a4 {[%clk 0:34:13]} Qg4+ {[%clk 0:21:48]} Kf1 {[%clk 0:34:21]} Bd4 {[%clk
0:19:35]} h4 {[%clk 0:31:48]} h5 {[%clk 0:19:04]} Ra3 {[%clk 0:24:48]} Nf6
{[%clk 0:19:12]} f3 {[%clk 0:25:08]} Qc8 {[%clk 0:17:57]} g3 {[%clk 0:23:18]}
Kg7 {[%clk 0:15:35]} Kg2 {[%clk 0:23:31]} Qc7 {[%clk 0:15:53]} Qd3 {[%clk
0:14:50]} Bxb2 {[%clk 0:15:02]} Rb3 {[%clk 0:14:05]} Bd4 {[%clk 0:15:25]} Rc1
{[%clk 0:13:42]} Rab8 {[%clk 0:13:18]} Rc2 {[%clk 0:11:04]} Rhc8 {[%clk
0:12:21]} Bc1 {[%clk 0:10:25]} a6 {[%clk 0:10:40]} Bd2 {[%clk 0:10:34]} Nd7
{[%clk 0:09:40]} f4 {[%clk 0:10:16]} Nf6 {[%clk 0:09:57]} a5 {[%clk 0:09:52]} b5
{[%clk 0:08:56]} axb6 {[%clk 0:10:16]} Rxb6 {[%clk 0:09:24]} Bxa6 {[%clk
0:10:29]} Rxb3 {[%clk 0:07:56]} Qxb3 {[%clk 0:10:54]} Rb8 {[%clk 0:07:05]} Qf3
{[%clk 0:07:18]} Qd7 {[%clk 0:05:38]} Bd3 {[%clk 0:07:03]} Rb3 {[%clk 0:04:57]}
Qe2 {[%clk 0:05:58]} Ng4 {[%clk 0:04:43]} Bc4 {[%clk 0:06:00]} Ne3+ {[%clk
0:03:24]} Kh2 {[%clk 0:06:20]} Nxc4 {[%clk 0:03:45]} Qxc4 {[%clk 0:06:39]} Rb1
{[%clk 0:04:09]} Bc3 {[%clk 0:06:48]} Rh1+ {[%clk 0:04:26]} Kxh1 {[%clk
0:07:10]} Qh3+ {[%clk 0:03:58]} Rh2 {[%clk 0:07:25]} Qxg3 {[%clk 0:04:22]} Bxd4+
{[%clk 0:07:19]} cxd4 {[%clk 0:04:48]} Qxd4+ {[%clk 0:07:39]} Kh7 {[%clk
0:05:13]} Qf2 {[%clk 0:07:50]} Qd3 {[%clk 0:04:58]} Qe2 {[%clk 0:05:55]} Qg3
{[%clk 0:05:11]} f5 {[%clk 0:06:15]}

[Variant "Standard"]
[Site "Europe Echecs"]

[Event "Open Cappelle-la-Grande"]
[Date "2026.02.22"]
[White "Ruzhansky, Elias"]
[Black "De Vleeschauwer, Maarten"]
[WhiteElo "2462"]
[BlackElo "2265"]
[Round "2.2.10"]
[Result "1-0"]
[TimeControl "40/5400+30:1800+30"]

e4 {[%clk 1:30:56]} c5 {[%clk 1:30:54]} Nf3 {[%clk 1:31:17]} e6 {[%clk 1:31:17]}
d4 {[%clk 1:31:19]} cxd4 {[%clk 1:31:39]} Nxd4 {[%clk 1:31:40]} Nf6 {[%clk
1:31:45]} Nc3 {[%clk 1:31:41]} Nc6 {[%clk 1:31:57]} Ndb5 {[%clk 1:31:08]} d6
{[%clk 1:31:57]} Bf4 {[%clk 1:31:07]} e5 {[%clk 1:32:17]} Bg5 {[%clk 1:31:27]}
a6 {[%clk 1:32:01]} Na3 {[%clk 1:31:39]} b5 {[%clk 1:32:19]} Nd5 {[%clk
1:31:34]} Be7 {[%clk 1:32:34]} Bxf6 {[%clk 1:31:39]} Bxf6 {[%clk 1:32:54]} c3
{[%clk 1:31:43]} O-O {[%clk 1:31:58]} Nc2 {[%clk 1:30:37]} Rb8 {[%clk 1:31:21]}
h4 {[%clk 1:28:09]} g6 {[%clk 1:27:37]} g3 {[%clk 1:27:35]} Bg7 {[%clk 1:26:38]}
Bh3 {[%clk 1:21:44]} Bb7 {[%clk 1:11:03]} Qd3 {[%clk 1:17:50]} Bh6 {[%clk
1:04:30]} Rd1 {[%clk 1:12:58]} Kg7 {[%clk 0:36:33]} h5 {[%clk 0:56:22]} Ne7
{[%clk 0:33:42]} Nde3 {[%clk 0:52:33]} f5 {[%clk 0:30:05]} Bg2 {[%clk 0:51:15]}
Rf6 {[%clk 0:20:14]} hxg6 {[%clk 0:48:22]} hxg6 {[%clk 0:20:00]} exf5 {[%clk
0:44:57]} Bxg2 {[%clk 0:15:35]} Nxg2 {[%clk 0:44:53]} gxf5 {[%clk 0:15:53]} Nge3
{[%clk 0:41:48]} Qd7 {[%clk 0:12:03]} Nb4 {[%clk 0:37:51]} Qb7 {[%clk 0:08:49]}
Ned5 {[%clk 0:29:44]} Rbf8 {[%clk 0:05:37]} Rh5 {[%clk 0:26:26]} Nxd5 {[%clk
0:04:19]} Nxd5 {[%clk 0:26:48]} R6f7 {[%clk 0:04:43]} Ke2 {[%clk 0:26:10]} Qc8
{[%clk 0:02:40]} Rdh1 {[%clk 0:25:26]} Rh8 {[%clk 0:02:25]} Ne3 {[%clk 0:21:14]}

[Variant "Standard"]
[Site "Europe Echecs"]

[Event "Open Cappelle-la-Grande"]
[Date "2026.02.22"]
[White "Luong Phuong Hanh"]
[Black "Duboue, Peio"]
[WhiteElo "2236"]
[BlackElo "2461"]
[Round "2.2.11"]
[Result "1-0"]
[TimeControl "40/5400+30:1800+30"]

d4 {[%clk 1:30:54]} Nf6 {[%clk 1:30:33]} Nf3 {[%clk 1:31:07]} d5 {[%clk
1:30:43]} g3 {[%clk 1:31:07]} Bf5 {[%clk 1:30:33]} Bg2 {[%clk 1:31:18]} e6
{[%clk 1:29:32]} c4 {[%clk 1:30:14]} c6 {[%clk 1:26:04]} Nc3 {[%clk 1:27:31]} h6
{[%clk 1:24:37]} Qb3 {[%clk 1:22:31]} Qb6 {[%clk 1:24:59]} c5 {[%clk 1:21:18]}
Qxb3 {[%clk 1:25:24]} axb3 {[%clk 1:21:42]} Be7 {[%clk 1:25:33]} b4 {[%clk
1:22:01]} O-O {[%clk 1:24:41]} b5 {[%clk 1:21:07]} cxb5 {[%clk 1:24:28]} Nxb5
{[%clk 1:21:13]} Nc6 {[%clk 1:24:37]} O-O {[%clk 1:20:31]} a6 {[%clk 1:22:32]}
Nc3 {[%clk 1:20:47]} Nd7 {[%clk 1:21:48]} Rd1 {[%clk 1:16:28]} Bc2 {[%clk
1:12:40]} Re1 {[%clk 1:10:52]} f5 {[%clk 1:03:14]} Be3 {[%clk 0:50:13]} Bf6
{[%clk 0:55:14]} Rec1 {[%clk 0:48:23]} Be4 {[%clk 0:54:29]} Rd1 {[%clk 0:47:39]}
b6 {[%clk 0:44:32]} cxb6 {[%clk 0:46:57]} Rfb8 {[%clk 0:43:41]} Nxe4 {[%clk
0:46:18]} fxe4 {[%clk 0:43:59]} Bh3 {[%clk 0:43:24]} Nf8 {[%clk 0:24:38]} Ne5
{[%clk 0:42:34]} Rxb6 {[%clk 0:25:00]} Nd7 {[%clk 0:40:37]} Rxb2 {[%clk
0:22:56]} Nxf8 {[%clk 0:40:21]} Kxf8 {[%clk 0:23:20]} Bxe6 {[%clk 0:40:37]} Ne7
{[%clk 0:23:31]} Ra5 {[%clk 0:35:57]} Rxe2 {[%clk 0:22:29]} Bd2 {[%clk 0:29:53]}
Bxd4 {[%clk 0:19:28]} Bb4 {[%clk 0:29:31]} Bb6 {[%clk 0:12:56]} Raxd5 {[%clk
0:29:33]} Rxf2 {[%clk 0:12:51]} Kh1 {[%clk 0:29:48]} e3 {[%clk 0:08:49]} Re5
{[%clk 0:25:15]} Rd8 {[%clk 0:04:03]} Bd7 {[%clk 0:21:57]} e2 {[%clk 0:02:29]}
Rd3 {[%clk 0:13:33]} Rf1+ {[%clk 0:00:42]} Kg2 {[%clk 0:14:01]} Rd1 {[%clk
0:00:33]} Bxe7+ {[%clk 0:13:54]} Kg8 {[%clk 0:00:38]} Bxd8 {[%clk 0:12:46]} Rxd3
{[%clk 0:00:31]}

[Variant "Standard"]
[Site "Europe Echecs"]

[Event "Open Cappelle-la-Grande"]
[Date "2026.02.22"]
[White "Bacrot, Alexandre"]
[Black "Hansen, Soren Bech"]
[WhiteElo "2457"]
[BlackElo "2222"]
[Round "2.2.12"]
[Result "1-0"]
[TimeControl "40/5400+30:1800+30"]

e4 {[%clk 1:30:27]} c5 {[%clk 1:30:46]} Nf3 {[%clk 1:30:32]} Nc6 {[%clk
1:31:07]} Bb5 {[%clk 1:30:57]} e6 {[%clk 1:30:57]} Bxc6 {[%clk 1:31:12]} bxc6
{[%clk 1:31:15]} b3 {[%clk 1:31:37]} Ne7 {[%clk 1:21:56]} e5 {[%clk 1:29:32]}
Ng6 {[%clk 1:19:43]} Bb2 {[%clk 1:28:47]} Be7 {[%clk 1:19:08]} h4 {[%clk
1:19:02]} h5 {[%clk 1:17:01]} g3 {[%clk 1:17:12]} c4 {[%clk 1:12:13]} bxc4
{[%clk 1:16:42]} c5 {[%clk 1:12:22]} d3 {[%clk 1:16:04]} Rb8 {[%clk 1:11:09]}
Bc3 {[%clk 1:16:29]} Bb7 {[%clk 1:11:28]} Nbd2 {[%clk 1:16:31]} f5 {[%clk
1:02:43]} exf6 {[%clk 1:11:20]} Bxf6 {[%clk 1:02:29]} Bxf6 {[%clk 1:11:44]} Qxf6
{[%clk 1:02:32]} O-O {[%clk 1:10:39]} Ne5 {[%clk 0:39:29]} Nxe5 {[%clk 1:10:19]}
Qxe5 {[%clk 0:37:52]} Nf3 {[%clk 1:10:47]} Bxf3 {[%clk 0:31:05]} Qxf3 {[%clk
1:08:57]} Rf8 {[%clk 0:31:27]} Rae1 {[%clk 1:07:19]} Rxf3 {[%clk 0:27:53]} Rxe5
{[%clk 1:07:45]} Rb2 {[%clk 0:28:15]} Kg2 {[%clk 1:07:45]} Rf5 {[%clk 0:27:34]}
Rxf5 {[%clk 1:08:12]} exf5 {[%clk 0:27:57]} Re1+ {[%clk 1:08:41]} Kf7 {[%clk
0:23:57]} Re5 {[%clk 1:09:05]} Kf6 {[%clk 0:24:16]} Rxc5 {[%clk 1:09:29]} Rxc2
{[%clk 0:24:37]} Rc7 {[%clk 1:07:28]} Ke6 {[%clk 0:21:59]} Rxa7 {[%clk 1:05:44]}
Rc3 {[%clk 0:19:18]} Ra6+ {[%clk 1:06:10]} Ke7 {[%clk 0:19:09]} Rg6 {[%clk
1:05:35]} Rxd3 {[%clk 0:19:22]} Rxg7+ {[%clk 1:05:56]} Ke6 {[%clk 0:18:12]} Rg6+
{[%clk 1:05:52]} Ke5 {[%clk 0:17:36]} Rg5 {[%clk 1:06:17]} Rc3 {[%clk 0:17:50]}
Rxh5 {[%clk 1:05:51]} Rxc4 {[%clk 0:18:14]} Rh8 {[%clk 1:05:38]} Ra4 {[%clk
0:09:09]} Re8+ {[%clk 1:04:06]} Kf6 {[%clk 0:07:42]} Rf8+ {[%clk 1:04:24]} Kg6
{[%clk 0:05:30]} Rd8 {[%clk 1:04:46]} Ra7 {[%clk 0:04:31]} a4 {[%clk 1:05:11]}
Kf6 {[%clk 0:04:41]} Rf8+ {[%clk 1:05:34]} Ke5 {[%clk 0:03:29]} h5 {[%clk
1:05:40]} d5 {[%clk 0:03:53]} f4+ {[%clk 0:56:14]} Ke6 {[%clk 0:21:48]} h6
{[%clk 1:25:03]} Rh7 {[%clk 0:20:02]} Rb8 {[%clk 1:24:22]} Kd6 {[%clk 0:17:41]}
a5 {[%clk 1:24:41]} Kc5 {[%clk 0:15:05]} a6 {[%clk 1:25:04]} Kc4 {[%clk
0:09:31]} Kf3 {[%clk 1:25:17]} d4 {[%clk 0:08:44]} Ke2 {[%clk 1:25:41]} Ra7
{[%clk 0:05:43]} Rc8+ {[%clk 1:25:48]} Kd5 {[%clk 0:04:35]} Kd3 {[%clk 1:26:12]}
Rh7 {[%clk 0:04:55]} Rf8 {[%clk 1:26:26]}

[Variant "Standard"]
[Site "Europe Echecs"]